Cogmind - Beta 9.4 --- EXPLORER MODE // 2020.03.28 @ 17:05:11 Player: hemo Result: Destroyed by S-27 Virus via exploding Neutrino Reactor Performance ------------- Evolutions (5) 2500 Regions Visited (7) 1400 Robots Destroyed (9) 45 Value Destroyed (460) 460 Prototype IDs (5) 100 Alien Tech Used (0) 0 Bonus (1325) 1325 TOTAL SCORE: 5830 Bonus ------- Pacifist 1325 Cogmind --------- Core Integrity 0/1000 Matter 121/300 Energy 100/100 System Corruption 3% Temperature Cool (0) Movement Core (50) Location -5/Factory Parts ------- > --- POWER (2) -------- (None) > --- PROPULSION (4) --- (None) > --- UTILITY (10) ----- Visual Processing Unit Signal Interpreter Terrain Scan Processor Launcher Guidance Computer Improved System Shield > --- WEAPON (2) ------- (None) > --- INVENTORY (4) ---- Light Nuclear Core EM Shield Smartbomb Launcher Peak State ------------ > --- POWER ------------ Backup Power III Heavy Deuterium Engine > --- PROPULSION ------- Improved Gravmag System Antigrav System Antigrav System Gyrokinetic Inverter > --- UTILITY ---------- Visual Processing Unit Signal Interpreter Advanced Terrain Scanner Terrain Scan Processor Improved Light Armor Plating EM Shield System Shield > --- WEAPON ----------- Smartbomb Launcher > --- INVENTORY -------- Fission Core Combat Airjet Nuclear Pulse Thruster [Rating: 63] Favorites ----------- Power Backup Power III Engine Backup Power III Power Core Light Fission Core Propulsion Backup Propulsion III Leg Titanium Leg Hover Unit Backup Propulsion III Flight Unit VTOL Module Utility Visual Processing Unit Device Advanced Terrain Scanner Processor Visual Processing Unit Hackware System Shield Protection Hardened Medium Armor Plating Weapon Great Axe Ballistic Cannon Advanced Assault Cannon Launcher Mini Grenade Launcher Special Weapon Mining Laser Slashing Weapon Great Axe Build | -11 -10 -9 -9 -8 -7 -6 -5 ------- Run | Scr Mat Mat Min Mat Fac Fac Fac Slots Evolved 11 | . 1 2 . 2 2 2 2 Power 1 | . . . . 1 . . . Propulsion 2 | . 1 . . . 1 . . Utility 8 | . . 2 . 1 1 2 2 Weapon . | . . . . . . . . Parts Attached 68 | 3 7 5 . 1 10 20 22 Power 14 | 1 3 . . . 2 4 4 Engine 7 | 1 3 . . . 1 1 1 Core 7 | . . . . . 1 3 3 Reactor . | . . . . . . . . Propulsion 16 | . . . . . 1 6 9 Treads . | . . . . . . . . Leg 1 | . . . . . 1 . . Wheel . | . . . . . . . . Hover 11 | . . . . . . 6 5 Flight 4 | . . . . . . . 4 Utility 26 | 2 3 2 . 1 3 10 5 Device 11 | 1 2 . . . 1 5 2 Storage . | . . . . . . . . Processor 7 | 1 1 2 . 1 1 . 1 Hackware 2 | . . . . . . 1 1 Protection 6 | . . . . . 1 4 1 Artifact . | . . . . . . . . Weapon 12 | . 1 3 . . 4 . 4 Energy Gun . | . . . . . . . . Energy Cannon . | . . . . . . . . Ballistic Gun . | . . . . . . . . Ballistic Cannon 1 | . . . . . 1 . . Launcher 5 | . . . . . 2 . 3 Special Weapon 4 | . 1 3 . . . . . Impact Weapon . | . . . . . . . . Slashing Weapon 2 | . . . . . 1 . 1 Piercing Weapon . | . . . . . . . . Special Melee Weapon . | . . . . . . . . Unidentified Prototypes 2 | . . . . . 1 1 . Parts Lost 31 | . . 2 . 2 . 7 20 Power 6 | . . 1 . . . 1 4 Propulsion 11 | . . . . . . 2 9 Utility 8 | . . . . 1 . 2 5 Weapon 6 | . . 1 . 1 . 2 2 Highest Loss Streak 8 | . . 1 . 2 . 7 8 Average Slot Usage (%) 64 | . 41 44 50 45 70 89 56 Engine 6 | . 12 7 . . 10 6 4 Core 1 | . . . . . . 5 1 Hover 8 | . . . . . 11 17 9 Device 8 | . 11 10 10 8 3 13 7 Processor 21 | . 12 22 30 29 27 18 16 Hackware 2 | . . . . . . 3 5 Protection 4 | . . . . . 5 10 2 Launcher 2 | . . . . . 5 5 1 Special Weapon 2 | . 4 4 10 7 . . . Slashing Weapon 2 | . . . . . 5 5 . Naked Turns . | . . . . . . . . Heaviest Build 42 | 4 5 5 2 2 18 42 27 Greatest Support 68 | 3 3 3 3 3 18 56 68 Greatest Overweight (x) 2 | 1 1 1 . . 1 . 2 Average Overweight (x) . | . . . . . . . . Largest Inventory Capacity 4 | 4 4 4 4 4 4 4 4 Average Capacity 4 | 4 4 4 4 4 4 4 4 Most Carried 4 | . 4 4 3 4 4 4 4 Average Carried 3 | . 2 3 3 3 3 3 2 Final Capacity 4 | 4 4 4 4 4 4 4 4 Final Carried 4 | . 4 3 3 4 4 3 4 Class Distribution -------------------- 63% | Hacker-Scout 36% | Hacker-Mutant Dominant Class ---------------- Hacker-Mutant | -10/Materials Hacker-Mutant | -9/Materials Hacker-Scout | -9/Mines Hacker-Scout | -8/Materials Hacker-Scout | -7/Factory Hacker-Scout | -6/Factory Hacker-Scout | -5/Factory Resources | -11 -10 -9 -9 -8 -7 -6 -5 ----------- Run | Scr Mat Mat Min Mat Fac Fac Fac Matter Collected 717 | 230 . . . 83 67 69 268 Remotely . | . . . . . . . . Salvage Created 114 | . . . . . . 37 77 Parts 11 | . . . . . . . 11 Haulers Intercepted . | . . . . . . . . Recyclers Shooed . | . . . . . . . . Parts Field Recycled . | . . . . . . . . Retrieved Matter . | . . . . . . . . Parts Self-Destructed . | . . . . . . . . Prevented . | . . . . . . . . Kills | -11 -10 -9 -9 -8 -7 -6 -5 ------- Run | Scr Mat Mat Min Mat Fac Fac Fac Combat Hostiles Destroyed 8 | . . . . . . 1 7 AOE 8 | . . . . . . 1 7 Classes Destroyed 3 | . . . . . . 2 1 Worker 1 | . . . . . . 1 . Swarmer 7 | . . . . . . . 7 Programmer 1 | . . . . . . 1 . Best Kill Streak 5 | . . . . . . 2 5 Combat Bots Only 5 | . . . . . . 1 5 Max Kills in Single Turn 5 | . . . . . . 1 5 Gunslinging . | . . . . . . . . Exploded 5 | . . . . . . 1 5 Melee . | . . . . . . . . Uniques/NPCs Destroyed . | . . . . . . . . Combat | -11 -10 -9 -9 -8 -7 -6 -5 -------- Run | Scr Mat Mat Min Mat Fac Fac Fac Damage Taken 4014 | . 81 134 . 131 239 1160 2269 Core 1373 | . 34 91 . 92 45 110 1001 Absorbed by Shields 67 | . . . . . . . 67 Core Remaining (%) 87 | 100 86 . 77 83 93 87 . Volleys Fired 23 | . 9 . 2 4 1 . 7 Largest 1 | . 1 . 1 1 1 . 1 Hottest 100 | . 100 . 100 100 30 . 46 Shots Fired 24 | . 9 . 2 4 1 1 7 Gun . | . . . . . . . . Cannon . | . . . . . . . . Launcher 9 | . . . . . 1 1 7 Special 15 | . 9 . 2 4 . . . Kinetic . | . . . . . . . . Thermal 15 | . 9 . 2 4 . . . Explosive 9 | . . . . . 1 1 7 Electromagnetic . | . . . . . . . . Robot Hit Streak 1 | . . . . . . 1 . Robot Miss Streak . | . . . . . . . . Penetration Max . | . . . . . . . . Secondary Targets . | . . . . . . . . Shots Hit Robots 1 | . . . . . . 1 . Core Hits 11 | . . . . . 1 2 8 Critical Hits . | . . . . . . . . Critical Kills . | . . . . . . . . Critical Parts Destroyed . | . . . . . . . . Melee Attacks 61 | . . . . . 5 53 3 Impact . | . . . . . . . . Slashing 61 | . . . . . 5 53 3 Piercing . | . . . . . . . . Sneak Attacks . | . . . . . . . . Combat Hostiles . | . . . . . . . . Follow-up Attacks . | . . . . . . . . Damage Inflicted 940 | . . . . . 139 238 563 Guns . | . . . . . . . . Cannons . | . . . . . . . . Explosions 940 | . . . . . 139 238 563 Melee . | . . . . . . . . Ramming . | . . . . . . . . Kinetic . | . . . . . . . . Thermal 605 | . . . . . . 203 402 Explosive 335 | . . . . . 139 35 161 Electromagnetic . | . . . . . . . . Impact . | . . . . . . . . Slashing . | . . . . . . . . Piercing . | . . . . . . . . Highest Corruption 11 | . . . . . 4 11 3 Average Corruption 4 | . . . . . 4 6 3 Corruption Purged . | . . . . . . . . Effects 13 | . . . . . 2 8 3 Message Errors 1 | . . . . . . 1 . Matter Fused 1 | . . . . . 1 . . Heat Flow Errors 1 | . . . . . . . 1 Energy Discharges 4 | . . . . . . 3 1 Data Loss (minor) 3 | . . . . . 1 1 1 Misfires 1 | . . . . . . 1 . Misdirections 1 | . . . . . . 1 . Targeting Errors 1 | . . . . . . 1 . Overload Shots . | . . . . . . . . Overflow Damage 163 | . . . . . . 141 22 Projectiles . | . . . . . . . . Explosions 163 | . . . . . . 141 22 Melee . | . . . . . . . . Knockbacks . | . . . . . . . . Impact . | . . . . . . . . Kinetic . | . . . . . . . . Secondary . | . . . . . . . . Self-Inflicted Damage 656 | . . . . . 78 320 258 Shots 14 | . . . . . 2 6 6 Rammed . | . . . . . . . . Targets Rammed . | . . . . . . . . Kicked . | . . . . . . . . Crushed . | . . . . . . . . Highest Temperature 231 | . 52 . . . 21 47 231 Average Temperature 36 | . 37 . . . 7 11 55 Received Heat Transfer 402 | . 72 9 . 18 117 87 99 Siege Activations . | . . . . . . . . Robots Corrupted . | . . . . . . . . Combat Hostiles . | . . . . . . . . Parts Fried . | . . . . . . . . Impact Corruptions . | . . . . . . . . Robots Melted . | . . . . . . . . Combat Hostiles . | . . . . . . . . Parts Melted 2 | . . . . . . 1 1 Heat Transferred 400 | . . . . . . 100 300 Parts Sabotaged . | . . . . . . . . Parts Stolen . | . . . . . . . . Parts Stripped . | . . . . . . . . Power Chain Reactions . | . . . . . . . . Missiles Intercepted . | . . . . . . . . Alert | -11 -10 -9 -9 -8 -7 -6 -5 ------- Run | Scr Mat Mat Min Mat Fac Fac Fac Peak Influence 410 | . 55 37 10 55 121 119 410 Average Influence 53 | . 43 22 10 26 26 59 125 Maximum Alert Level 2 | . . . . . . . 2 Low Security (%) 96 | 100 100 100 100 100 100 100 83 Level 1 3 | . . . . . . . 16 Level 2 . | . . . . . . . . Level 3 . | . . . . . . . . Level 4 . | . . . . . . . . Level 5 . | . . . . . . . . High Security . | . . . . . . . . Max Security . | . . . . . . . . Squads Dispatched 16 | . 2 . . 1 2 5 6 Investigation 9 | . 2 . . . 1 1 5 Extermination 2 | . . . . . . 2 . Reinforcement 5 | . . . . 1 1 2 1 Assault . | . . . . . . . . Garrison . | . . . . . . . . Intercept . | . . . . . . . . Construction Impeded . | . . . . . . . . Haulers Reinforced . | . . . . . . . . Stealth | -11 -10 -9 -9 -8 -7 -6 -5 --------- Run | Scr Mat Mat Min Mat Fac Fac Fac Distress Signals 5 | . . 2 . 1 . 1 1 Communications Jammed . | . . . . . . . . Distress Signals . | . . . . . . . . Times Spotted 119 | . 9 9 . 18 11 15 57 Peak Tracking Total 19 | . 4 6 . 11 6 6 19 Tactical Retreats 26 | . 2 2 . 2 3 4 13 Traps | -11 -10 -9 -9 -8 -7 -6 -5 ------- Run | Scr Mat Mat Min Mat Fac Fac Fac Traps Triggered 8 | . 2 3 . 1 1 . 1 Indirectly . | . . . . . . . . Trap Hack Attempts . | . . . . . . . . Triggered . | . . . . . . . . Disarmed . | . . . . . . . . Reprogrammed . | . . . . . . . . Reused . | . . . . . . . . Traps Extracted . | . . . . . . . . Installed . | . . . . . . . . Triggered 1 | . . . . 1 . . . Machines | -11 -10 -9 -9 -8 -7 -6 -5 ---------- Run | Scr Mat Mat Min Mat Fac Fac Fac Machines Disabled 22 | . 1 . . . 6 6 9 Max in Single Turn 6 | . 1 . . . 3 6 5 Garrison Access 1 | . . . . . 1 . . Machines Sabotaged . | . . . . . . . . Garrisons Compromised . | . . . . . . . . Overloaded Fab Kills . | . . . . . . . . Fab Network Shutdowns . | . . . . . . . . Hacking | -11 -10 -9 -9 -8 -7 -6 -5 --------- Run | Scr Mat Mat Min Mat Fac Fac Fac Machines Accessed 33 | . 5 2 . 3 8 7 8 Terminals 19 | . 5 1 . 2 2 5 4 Fabricators 4 | . . . . . 2 2 . Repair Stations 2 | . . . . . 2 . . Recycling Units 5 | . . . . 1 . . 4 Scanalyzers 1 | . . 1 . . . . . Garrison Access 2 | . . . . . 2 . . Total Hacks 102 | . 20 13 . 9 21 17 22 Successful 61 | . 16 12 . 6 10 8 9 Failed 41 | . 4 1 . 3 11 9 13 Catastrophic 6 | . 1 1 . 1 . 1 2 Database Lockouts . | . . . . . . . . Manual 56 | . 19 5 . 8 6 5 13 Terminals 64 | . 20 4 . 8 4 14 14 Fabricators 8 | . . . . . 5 3 . Repair Stations 6 | . . . . . 6 . . Recycling Units 9 | . . . . 1 . . 8 Scanalyzers 9 | . . 9 . . . . . Garrison Access 6 | . . . . . 6 . . Terminal Hacks 30 | . 13 3 . 4 1 6 3 Record 3 | . . . . . . 1 2 Part Schematic 3 | . 1 1 . . . 1 . Robot Analysis 3 | . 2 . . . . 1 . Prototype ID Bank 5 | . 5 . . . . . . Level Access Points 2 | . 1 . . 1 . . . Terminal Index 3 | . 1 1 . 1 . . . Fabricator Index 1 | . . 1 . . . . . Scanalyzer Index 1 | . . . . . . 1 . Alert Level 2 | . . . . . 1 . 1 Unreport Threat 1 | . . . . . . 1 . Registered Components 4 | . 2 . . 1 . 1 . Registered Prototypes 2 | . 1 . . 1 . . . Fabricator Hacks 4 | . . . . . 2 2 . Load Schematic 2 | . . . . . 1 1 . Build 2 | . . . . . 1 1 . Repair Station Hacks 1 | . . . . . 1 . . Refit 1 | . . . . . 1 . . Recycling Unit Hacks 3 | . . . . 1 . . 2 Report Inventory 2 | . . . . 1 . . 1 Retrieve Matter 1 | . . . . . . . 1 Scanalyzer 8 | . . 8 . . . . . Insert Component 4 | . . 4 . . . . . Analyze 4 | . . 4 . . . . . Garrison Access Hacks 2 | . . . . . 2 . . Seal Access 1 | . . . . . 1 . . Coupler Status 1 | . . . . . 1 . . Unauthorized Hacks 33 | . 6 2 . 2 10 1 12 Terminals 5 | . 3 . . 1 . . 1 Assimilate 2 | . 1 . . 1 . . . Operators 2 | . 1 . . . . . 1 Search 1 | . 1 . . . . . . Fabricators . | . . . . . . . . Repair Stations . | . . . . . . . . Recycling Units 3 | . . . . . . . 3 Tunnel 3 | . . . . . . . 3 Scanalyzers 1 | . . 1 . . . . . Researchers 1 | . . 1 . . . . . Garrison Access 4 | . . . . . 4 . . Intercept 1 | . . . . . 1 . . Watchers 2 | . . . . . 2 . . Eject 1 | . . . . . 1 . . Data Cores Recovered . | . . . . . . . . Used . | . . . . . . . . Hacking Detections 27 | . 5 1 . 2 7 6 6 Full Trace Events 4 | . 1 . . . . 1 2 Feedback Events . | . . . . . . . . Feedback Blocked . | . . . . . . . . Robot Schematics Acquired . | . . . . . . . . Robots Built 1 | . . . . . 1 . . Matter 219 | . . . . . 219 . . Time 58 | . . . . . 58 . . Total Robot Build Rating 3 | . . . . . 3 . . Part Schematics Acquired 7 | . 1 5 . . . 1 . Parts Built 2 | . . . . . . 2 . Matter 234 | . . . . . . 234 . Time 117 | . . . . . . 117 . Total Part Build Rating 14 | . . . . . . 14 . Parts Repaired . | . . . . . . . . Time . | . . . . . . . . Parts Recycled . | . . . . . . . . Recycled Matter . | . . . . . . . . Retrieved Matter . | . . . . . . . . Retrieved Components . | . . . . . . . . Parts Scanalyzed 4 | . . 4 . . . . . Part Schematics Acquired 4 | . . 4 . . . . . Parts Damaged . | . . . . . . . . Bothacking | -11 -10 -9 -9 -8 -7 -6 -5 ------------ Run | Scr Mat Mat Min Mat Fac Fac Fac Used RIF Installer . | . . . . . . . . Robots Hacked . | . . . . . . . . Non-combat . | . . . . . . . . Combat . | . . . . . . . . Robot Hacks Applied . | . . . . . . . . Relay Couplers Released 3 | . . . . . 3 . . Ejected 3 | . . . . . 3 . . Robots Rewired . | . . . . . . . . Allies Hacked . | . . . . . . . . Hacks Repelled . | . . . . . . . . Allies | -11 -10 -9 -9 -8 -7 -6 -5 -------- Run | Scr Mat Mat Min Mat Fac Fac Fac Total Allies 6 | . . . 5 . 1 . . Largest Group 5 | . . . 5 . 1 . . Highest-Rated Group 87 | . . . 87 . 12 . . Highest-Rated Ally 31 | . . . 31 . 12 . . Total Orders 5 | . . . 3 . 2 . . STAY 3 | . . . 3 . . . . GOTO 1 | . . . . . 1 . . FOLLOW 1 | . . . . . 1 . . Ally Attacks . | . . . . . . . . Total Damage . | . . . . . . . . Kills . | . . . . . . . . Allies Corrupted . | . . . . . . . . Allies Melted . | . . . . . . . . Intel | -11 -10 -9 -9 -8 -7 -6 -5 ------- Run | Scr Mat Mat Min Mat Fac Fac Fac Robot Analysis Total 3 | . 2 . . . . 1 . Derelict Logs Recovered . | . . . . . . . . Drone Launches . | . . . . . . . . Drone Recoveries . | . . . . . . . . Exploration | -11 -10 -9 -9 -8 -7 -6 -5 ------------- Run | Scr Mat Mat Min Mat Fac Fac Fac Turns Passed 2183 | 30 197 173 188 126 532 505 432 Spaces Moved 2801 | 31 149 199 274 199 622 598 729 Core 1035 | 31 149 199 274 199 152 . 31 Treads . | . . . . . . . . Legs . | . . . . . . . . Wheels . | . . . . . . . . Hover 1482 | . . . . . 470 598 414 Flight 284 | . . . . . . . 284 Fastest Speed 34 | 50 50 50 50 50 50 52 34 Average Speed 60 | 85 99 83 50 50 69 53 50 Slowest Speed 150 | 100 100 100 50 50 100 76 150 Overloaded Moves . | . . . . . . . . Propulsion Burnouts . | . . . . . . . . Robots Hopped 1 | . . . . . . . 1 Cave-ins Triggered 1 | . . . . . . . 1 Exploration Rate (%) 26 | 4 32 21 46 35 19 30 27 Regions Visited 7 Branch Regions 1 Pre-discovered Areas 3 | . . . . . . . 3 Known Exits Taken 7 | 1 1 1 1 1 1 1 . Unknown Exits Taken . | . . . . . . . . Scrap Searched . | . . . . . . . . Spaces Dug 195 | . 8 . 2 4 11 53 117 Terrain Destroyed 331 | . 8 . 2 4 48 110 159 Melee 60 | . . . . . 5 53 2 Projectile 14 | . 8 . 2 4 . . . AOE 257 | . . . . . 43 57 157 Actions | -11 -10 -9 -9 -8 -7 -6 -5 --------- Run | Scr Mat Mat Min Mat Fac Fac Fac Total 3105 | 33 168 205 318 212 706 688 775 Wait 111 | . . . 43 8 54 . 6 Move 2791 | 30 148 198 273 198 621 597 726 Hop 1 | . . . . . . . 1 Pick Up 15 | . 3 . . 1 5 4 2 Fast Attach 44 | 3 6 2 . 1 8 9 15 Attach 14 | . . 3 . . 2 2 7 Detach 8 | . . 2 . . . . 6 Swap 13 | . 1 . . . 3 9 . Drop 23 | . 1 . . . 7 14 1 Fire 23 | . 9 . 2 4 1 . 7 Melee 61 | . . . . . 5 53 3 Ram . | . . . . . . . . Kick . | . . . . . . . . Crush . | . . . . . . . . Escape Stasis 1 | . . . . . . . 1 Rewire . | . . . . . . . . Trap . | . . . . . . . . Miscellaneous . | . . . . . . . . Route ------- -11/Scrapyard -10/Materials (discovered 4 exits: *Mat x3 / *Min) -9/Materials -9/Mines -8/Materials (discovered 3 exits: *Fac x3) -7/Factory -6/Factory -5/Factory History --------- Turn | Location | Event 12 | -11/Scrapyard | Identified exit to Materials 12 | -11/Scrapyard | Discovered exit to Materials (range 15) 31 | -11/Scrapyard | Entered Materials 31 | -10/Materials | Evolved 1 slot: Propulsion x1 96 | -10/Materials | Identified exit to Materials 137 | -10/Materials | Identified exit to Mines 137 | -10/Materials | Discovered exit to Mines (range 12) 228 | -10/Materials | Entered another Materials area 228 | -9/Materials | Evolved 2 slots: Utility x2 310 | -9/Materials | Build established: Hacker-Mutant 393 | -9/Materials | Identified exit to Mines 393 | -9/Materials | Discovered exit to Mines (range 11) 401 | -9/Materials | Entered Mines 431 | -9/Mines | Identified exit to Materials 431 | -9/Mines | Discovered exit to Materials (range 10) 468 | -9/Mines | Met a Derelict bent on vengeance 534 | -9/Mines | Assisted by bots powering up and referring to "LRC-V3" 589 | -9/Mines | Entered Materials 589 | -8/Materials | Evolved 2 slots: Power x1, Utility x1 661 | -8/Materials | Build established: Hacker-Scout 693 | -8/Materials | Identified exit to Factory 715 | -8/Materials | Entered Factory 715 | -7/Factory | Evolved 2 slots: Propulsion x1, Utility x1 1094 | -7/Factory | Fabricated M-14 Sweeper (x1) 1233 | -7/Factory | Identified exit to Factory 1233 | -7/Factory | Discovered exit to Factory (range 17) 1247 | -7/Factory | Entered another Factory area 1247 | -6/Factory | Evolved 2 slots: Utility x2 1300 | -6/Factory | Spotted B-75 Beast 1535 | -6/Factory | Fabricated Hyp. Mass Driver? 1650 | -6/Factory | System corruption reached 10% 1746 | -6/Factory | Lost 7 parts (1p2n2u2w) 1750 | -6/Factory | Identified exit to Factory 1750 | -6/Factory | Discovered exit to Factory (range 4) 1752 | -6/Factory | Entered another Factory area 1752 | -5/Factory | Evolved 2 slots: Utility x2 1900 | -5/Factory | Crushed by falling debris 1951 | -5/Factory | Lost 5 parts (1p3n1w) 2019 | -5/Factory | Core integrity fell below 50% 2061 | -5/Factory | Lost 8 parts (2p2n4u) 2101 | -5/Factory | Core integrity fell below 20% 2184 | -5/Factory | Destroyed by S-27 Virus via exploding Neutrino Reactor Last Messages --------------- >>Force(Tunnel) DISCOVERED[-7/Storage] 02148_ ALERT: Suspicious activity at Recycling Unit F001. Dispatching Investigation squad. 02159_ Greatsword destroyed. 02162_ Subcomponent Replicator disabled. 02162_ VTOL Module destroyed. 02162_ Destroyed VTOL Module. 02169_ W-25 Informer distress signal alerts nearby ally. 02175_ VTOL Module destroyed. 02175_ Destroyed VTOL Module. 02175_ S-27 Virus destroyed. 02178_ VTOL Module destroyed. 02179_ The unstable cave ceiling collapses. 02180_ System Shield destroyed. 02184_ Neutrino Reactor explodes. 02184_ Nuclear Reactor explodes. 02184_ Terminal disabled. 02184_ Neutrino Reactor explodes. 02184_ Lgt. Nuclear Core destroyed. Map ----- +----------------------------------------------------+ | ?????????????????????????????????????????????????? | | ?????????????????????????????????????????????????? | | ?????????????????????????????????????????????????? | | ?????????????????????????????????????????????????? | | ?????????????????????????????????????????????????? | | ?????????????????????????????????????????????????? | | ?????????????????????????????????????????????????? | | ?????????????????????????????????????????????????? | | ?????????????????????????????????????????????????? | | ?????????????????????????????????????????????????? | | ?????????????????????????????????????????????????? | | ?????????????????????????????????????????????????? | | ?????????????????#+#?????????????????????????????? | | ????????????????? ?????????????????????????????? | | ?????##########?? ?????????????????????????????? | | ?????# #?? ?????????????????????????????? | | ?????# #??# #?????????????????????????????? | | ?????#"" #??# #?????????????????????????????? | | ?????# #??# #?????????????????????????????? | | ???### #??# ##############????????????????? | | ???# ##?# # #????????????????? | | ???# = ;###+# #????????????????? | | ???# # # ! #????????????????? | | ???# g #????????????????? | | ???# ##+ #????????????????? | | ###### s s @ #????????????????? | | ### =#????????????????? | | #?# = # #????????????????? | | #?# % % #????????????????? | | ### = u #?????????? ?????? | | Rg T #???????? ????? | | ########### # """ #?????? ????? | | #????# #####+#+########### ????? | | #????# #?#?# ???? | | #????# ##### ???? | | #??#?# + ??? | | #????# ##### ??? | | ##+##+#????# #??## ??? | | #?????? ???# #???# #### #########?#????? | | #??????????# #???# ##?#+###########????? | | #??????????# #???# #? ????? | | #???????? ?# ##### # ???? | | #??????? ??# / # ???? | | #??????????# ##### + ?#?? | | #????? ? ?# #???# # ???? | | #??????? ??# #???# # ### | | ###+#############/##### #? ??# | | * #??##########+##??# | | #???????#?????##??# | | "" ##??#???##?##???#?# | +----------------------------------------------------+ Best States ------------- Heat Dissipation 40 Energy Generation 31 Energy Capacity 450 Matter Stores 300 Matter Capacity 300 Sight Range 20 Robot Scan Range 10 Terrain Scan Range 20 Terrain Scan Density 85 Corruption Prevention 24 Armor Coverage 450 Resistance: KI 35 Resistance: TH 35 Resistance: EX 35 Resistance: EM 60 Resistance: I 35 Resistance: S 35 Resistance: P 35 Evasion (%) 63 Targeting Accuracy 5 Launcher Accuracy 20 Core Analysis 6 Offensive Hacking 20 Defensive Hacking 22 Item Schematics ----------------- Flight Unit | -10/Materials | Hacked Imp. Hover Unit | -9/Materials | Hacked Lgt. Ion Engine | -9/Materials | Scanalyzed Grenade Launcher | -9/Materials | Scanalyzed Mni. Grenade Launcher | -9/Materials | Scanalyzed Mining Laser | -9/Materials | Scanalyzed Triangulator | -6/Factory | Hacked Robot Schematics ------------------ None Fabricated ------------ M-14 Sweeper | x1 | -7/Factory | Preloaded Hyp. Mass Driver | x2 | -6/Factory | Preloaded Alien Tech Used ----------------- None Achievements -------------- Maybe Next Time I'll Detach My Launcher Challenges ------------ None Game ------ Seed FireSubatomicStripper Manual? 0 Play Time 01:06:57 Cumulative 53.9 hours Start 2020.03.28 @ 15:33:50 End 2020.03.28 @ 17:05:11 Sessions 1 Manual Loads 0 Difficulty Explorer Special Mode None Game No. 11 Rogue 1 Adventurer 2 Explorer 8 Win Type - Total 3 Types 3/0/0/0/0/0/0 Lore% 41 Gallery% 67 Achievement% 46 Wizard Run 0 Options --------- ASCII 0 Keyboard 0 Movement Mouse Keybinds 0 Fullscreen 2 Font 24/Terminus Map View 76x50 Tactical HUD 1 Map Filters NONE Filters NONE Steam 1 RUN: 523c6bdb-26b8-4556-8e71-d95dc2bb7b5d